bitfinex/quotes_SOLUSD_20250416
["timestamp","ask_amount","ask_price","bid_price","bid_amount"]
[1744833199387,65.92145099,132.75,132.7,58.38795244]
[1744833199592,58.38795244,132.71,132.64,1.37859727]
[1744833199793,58.38795244,132.7,132.65,58.38795244]
[1744833200382,58.38795244,132.7,132.59,5.9600961]
[1744833200383,58.38795244,132.71,132.66,58.38795244]
[1744833200583,39.8330314,132.75,132.68,58.38795244]
[1744833200789,58.38795244,132.74,132.69,58.38795244]
[1744833200991,98.2209843,132.75,132.7,58.38795244]
[1744833201684,58.38795244,132.74,132.69,58.38795244]
[1744833201882,58.38795244,132.73,132.68,58.38795244]
[1744833202086,39.83303186,132.75,132.67,58.38795244]
[1744833202294,58.38795244,132.71,132.64,26.0]
[1744833202499,58.38795244,132.72,132.67,58.38795244]
[1744833202801,58.38795244,132.71,132.67,56.88795244]
[1744833203088,58.66542357,132.75,132.59,5.9600961]
[1744833203089,58.38795244,132.68,132.59,0.063]
[1744833203391,6.2091,132.73,132.66,58.38795244]
[1744833203694,58.38795244,132.68,132.63,58.38795244]
[1744833203907,58.38795244,132.67,132.62,58.38795244]
[1744833204192,58.38795244,132.67,132.61,26.0]
[1744833204370,58.38795244,132.67,132.62,58.38795244]
[1744833204786,58.38795244,132.65,132.6,58.38795244]
[1744833204990,58.38795244,132.66,132.61,58.38795244]
[1744833205171,58.38795244,132.67,132.62,58.38795244]
[1744833205372,58.38795244,132.66,132.61,58.38795244]
[1744833205687,58.38795244,132.66,132.59,0.063]
[1744833205688,58.38795244,132.64,132.59,0.063]
[1744833205866,58.38795244,132.64,132.59,58.45095244]
[1744833206067,58.38795244,132.64,132.59,0.063]
[1744833206267,58.38795244,132.63,132.59,0.063]
[1744833206474,58.38795244,132.65,132.6,58.38795244]
[1744833206693,58.38795244,132.64,132.59,58.45095244]
[1744833207080,58.38795244,132.65,132.6,58.38795244]
[1744833207592,65.9271563,132.64,132.59,58.45095244]
[1744833207794,7.53920386,132.64,132.6,58.38795244]
[1744833208094,7.53884002,132.65,132.61,58.38795244]
[1744833208480,7.53884002,132.65,132.6,58.38795244]
[1744833208481,65.92679246,132.65,132.6,58.38795244]
[1744833208887,7.53884002,132.65,132.61,58.38795244]
[1744833209306,58.38795244,132.62,132.59,0.063]
[1744833209476,65.9288117,132.62,132.59,0.063]
[1744833209794,7.54085926,132.62,132.59,0.063]
[1744833210302,7.53713981,132.68,132.61,58.38795244]
[1744833210485,7.53713981,132.68,132.64,58.38795244]
[1744833210992,65.92509225,132.68,132.63,58.38795244]
[1744833211374,58.38795244,132.66,132.59,0.063]
[1744833211693,7.53821613,132.66,132.62,58.38795244]
[1744833212178,58.38795244,132.65,132.59,0.063]
[1744833212374,58.38795244,132.62,132.59,0.063]
[1744833213587,7.54090943,132.61,132.59,0.063]
[1744833214179,58.38795244,132.6,132.59,0.063]
[1744833214395,26.42648471,132.59,132.55,0.063]
[1744833214607,26.42648471,132.59,132.54,0.063]
[1744833214608,58.81443715,132.56,132.54,0.063]
[1744833214780,58.38795244,132.55,132.54,0.063]
[1744833215471,58.53011401,132.55,132.53,2.606623]
[1744833215787,65.93284454,132.54,132.53,2.606623]
[1744833216682,7.54451338,132.55,132.53,2.606623]
[1744833217399,7.54335003,132.57,132.53,60.99457544]
[1744833217599,7.54335003,132.57,132.54,58.38795244]
[1744833217807,7.54147812,132.6,132.54,58.38795244]
[1744833217978,7.54147812,132.6,132.56,58.38795244]
[1744833218185,7.54147812,132.6,132.53,2.606623]
[1744833218186,7.54147812,132.6,132.55,58.38795244]
[1744833218389,301.00908036,132.61,132.56,58.38795244]
[1744833218595,301.00908036,132.61,132.53,2.606623]
[1744833218596,242.62112792,132.61,132.57,58.38795244]
[1744833218797,242.62112792,132.61,132.55,58.38795244]
[1744833218994,301.00908036,132.61,132.56,58.38795244]
[1744833220098,58.38795244,132.59,132.54,58.38795244]
[1744833220398,58.38795244,132.58,132.53,60.99457544]
[1744833220580,301.00908036,132.61,132.56,58.38795244]
[1744833220785,7.54112792,132.61,132.57,58.38795244]
[1744833221191,38.1404367,132.62,132.58,58.38795244]
[1744833221593,38.1404367,132.62,132.53,2.606623]
[1744833221594,96.52838914,132.62,132.57,58.38795244]
[1744833221913,96.52838914,132.62,132.54,58.38795244]
[1744833221914,58.38795244,132.59,132.54,58.38795244]
[1744833222109,58.38795244,132.59,132.53,2.606623]
[1744833222279,58.38795244,132.58,132.54,58.38795244]
[1744833222678,58.38795244,132.57,132.53,2.606623]
[1744833222903,58.38795244,132.58,132.53,60.99457544]
[1744833223110,58.38795244,132.57,132.53,2.606623]
[1744833223409,58.38795244,132.56,132.53,2.606623]
[1744833223584,139.76912643,132.62,132.53,2.606623]
[1744833223585,58.38795244,132.55,132.53,2.606623]
[1744833223779,58.38795244,132.54,132.53,2.606623]
[1744833225310,29.78,132.55,132.53,2.606623]
[1744833225893,65.93150552,132.57,132.53,2.606623]
[1744833226199,58.38795244,132.56,132.53,2.606623]
[1744833226609,7.54355308,132.57,132.53,60.99457544]
[1744833226804,65.93150552,132.57,132.53,2.606623]
[1744833227399,7.54297541,132.58,132.53,60.99457544]
[1744833227719,7.54297541,132.58,132.54,58.38795244]
[1744833227884,29.78,132.59,132.55,58.38795244]
[1744833228209,29.78,132.59,132.56,58.38795244]
[1744833228500,29.78,132.59,132.53,2.606623]
[1744833228501,58.38795244,132.58,132.54,58.38795244]
[1744833228704,95.71010912,132.59,132.55,58.38795244]
[1744833228909,95.71010912,132.59,132.53,2.606623]
[1744833229110,58.38795244,132.58,132.53,2.606623]
[1744833229307,58.38795244,132.55,132.53,2.606623]
[1744833229814,58.38795244,132.54,132.53,2.606623]
[1744833230104,18.64964886,132.53,132.52,1e-08]
[1744833230306,58.38795244,132.53,132.52,1e-08]
[1744833231098,0.28432314,132.57,132.52,58.38795245]
[1744833231099,7.54318473,132.57,132.52,58.38795245]
[1744833231292,58.38795244,132.56,132.52,1e-08]
[1744833231903,58.38795244,132.53,132.52,1e-08]
[1744833232108,65.93341384,132.53,132.52,1e-08]
[1744833232306,7.5454614,132.53,132.52,1e-08]
[1744833233298,65.93341384,132.53,132.52,1e-08]
[1744833235212,19.07613357,132.52,132.49,0.063]
[1744833235389,58.38795244,132.5,132.49,0.063]
[1744833236324,87.34795244,132.51,132.49,0.063]
[1744833236624,58.38795244,132.5,132.49,0.063]
[1744833237010,28.96,132.51,132.49,0.063]
[1744833237011,94.89478114,132.51,132.49,0.063]
[1744833237200,36.5068287,132.51,132.49,0.063]
[1744833237529,28.96,132.51,132.49,0.063]
[1744833237912,94.8947353,132.51,132.49,0.063]
[1744833238519,28.96,132.51,132.49,0.063]
[1744833238822,7.54618043,132.52,132.49,0.063]
[1744833239027,65.93413287,132.52,132.49,0.063]
[1744833239219,65.93356028,132.53,132.49,58.45095244]
[1744833239410,87.36795244,132.56,132.52,58.38795244]
[1744833239610,94.91194292,132.56,132.51,58.38795244]
[1744833239804,58.38795244,132.54,132.5,58.38795244]
[1744833240008,58.38795244,132.55,132.5,58.38795244]
[1744833240433,58.38795244,132.54,132.49,0.063]
[1744833240607,58.38795244,132.55,132.51,58.38795244]
[1744833240805,94.91194292,132.56,132.51,58.38795244]
[1744833241124,7.54330934,132.57,132.54,58.38795244]
[1744833241335,58.38795244,132.59,132.51,58.38795244]
[1744833241507,28.14,132.62,132.57,58.38795244]
[1744833241704,35.68048269,132.62,132.58,58.38795244]
[1744833241907,0.03,132.65,132.61,58.38795244]
[1744833242104,65.95670006,132.65,132.61,58.38795244]
[1744833242299,58.38795244,132.62,132.57,58.38795244]
[1744833242537,58.38795244,132.63,132.58,58.38795244]
[1744833242707,65.95670006,132.65,132.61,58.38795244]
[1744833242908,0.03,132.65,132.64,58.38795244]
[1744833243743,0.03,132.65,132.58,92.41250659]
[1744833243923,0.03,132.65,132.64,58.38795244]
[1744833245529,0.03,132.65,132.64,116.77590488]
[1744833246329,0.03,132.65,132.64,58.38795244]
[1744833246629,0.03,132.65,132.64,135.42555374]
[1744833247214,0.03,132.65,132.64,135.85203845]
[1744833247411,0.03,132.73,132.72,58.38795244]
[1744833247612,0.03,132.73,132.69,58.38795244]
[1744833247932,58.41795244,132.73,132.68,58.38795244]
[1744833248108,58.41795244,132.73,132.7,58.38795244]
[1744833248109,0.03,132.71,132.7,58.38795244]
[1744833248418,0.03,132.71,132.65,58.38795244]
[1744833248736,0.03,132.71,132.7,58.38795244]
[1744833250957,0.03,132.71,132.7,135.42555374]
[1744833251129,0.03,132.71,132.7,77.0376013]
[1744833251332,0.03,132.71,132.7,58.38795244]
[1744833251652,0.03,132.71,132.7,77.0376013]
[1744833252038,0.03,132.71,132.67,26.0]
[1744833252236,0.03,132.71,132.7,58.38795244]
[1744833252640,0.03,132.71,132.66,20.21214886]
[1744833252855,0.03,132.71,132.69,58.38795244]
[1744833253038,0.03,132.71,132.67,26.0]
[1744833253238,0.03,132.71,132.68,58.38795244]
[1744833253637,0.03,132.71,132.69,58.38795244]
[1744833253956,0.03,132.71,132.67,58.38795244]
[1744833254257,0.03,132.71,132.69,58.38795244]
[1744833254467,0.03,132.71,132.7,77.0376013]
[1744833254848,0.03,132.71,132.7,135.85203845]
[1744833255037,0.03,132.73,132.72,19.07613357]
[1744833255365,0.03,132.79,132.78,58.38795244]
[1744833255541,0.03,132.79,132.72,18.64964886]
[1744833255739,58.38795244,132.78,132.74,58.38795244]
[1744833255946,58.38795244,132.75,132.66,9.15020889]
[1744833256247,58.38795244,132.75,132.7,84.38795244]
[1744833256558,58.38795244,132.78,132.73,58.38795244]
[1744833256958,0.03,132.79,132.74,58.38795244]
[1744833257162,0.03,132.79,132.78,58.38795244]
[1744833258153,0.03,132.79,132.77,58.38795244]
[1744833258462,0.03,132.79,132.78,58.38795244]
[1744833258959,0.03,132.81,132.78,58.38795244]
[1744833259162,0.03,132.81,132.8,58.38795244]
[1744833259760,0.03,132.81,132.8,103.0376013]
[1744833260434,0.03,132.85,132.84,26.0]
[1744833260636,0.03,132.85,132.84,84.38795244]
[1744833261266,0.03,132.85,132.84,103.0376013]
[1744833262039,0.03,132.88,132.84,103.0376013]
[1744833262243,0.03,132.93,132.91,26.0]
[1744833262546,0.03,132.93,132.88,18.64964886]
[1744833262547,58.38795244,132.98,132.92,58.38795244]
[1744833262751,58.38795244,132.98,132.94,58.38795244]
[1744833262961,58.38795244,132.99,132.92,26.0]
[1744833263158,58.38795244,132.98,132.94,58.38795244]
[1744833263561,7.51784047,133.02,132.97,58.38795244]
[1744833263757,58.38795244,133.02,132.98,58.38795244]
[1744833264062,58.38795244,133.01,132.96,58.38795244]
[1744833264560,26.30590002,133.05,132.96,58.38795244]
[1744833264763,7.51597143,133.05,132.96,58.38795244]
[1744833264950,7.51597143,133.05,133.0,58.38795244]
[1744833265150,64.43515244,133.06,133.01,58.38795244]
[1744833265357,65.9042193,133.05,133.0,58.38795244]
[1744833265554,65.9042193,133.05,132.96,18.64964886]
[1744833265785,37.28006898,133.35,133.16,20.0]
[1744833265943,1.0,133.34,133.16,29.58554862]
[1744833266142,1.0,133.32,133.18,37.1536418]
[1744833266343,29.18,133.33,133.14,37.48405984]
[1744833266773,11.55678941,133.26,133.18,37.1536418]
[1744833267068,2.05758754,133.26,133.16,37.05905223]
[1744833267243,9.56172657,133.26,133.18,37.1536418]
[1744833267448,2.05758754,133.26,133.18,37.1536418]
[1744833267951,23.11357882,133.27,133.2,37.06929076]
[1744833268275,23.11357882,133.27,133.21,56.5520196]
[1744833268644,23.11357882,133.27,133.18,19.07613357]
[1744833268856,23.11357882,133.27,133.2,37.06929076]
[1744833269054,7.50187546,133.3,133.23,21.71575391]
[1744833269454,0.42648471,133.29,133.23,21.71575391]
[1744833269657,19.07613357,133.29,133.23,21.71575391]
[1744833270056,19.07613357,133.27,133.23,21.71575391]
[1744833270455,253.61613357,133.27,133.23,21.71575391]
[1744833270657,253.61613357,133.27,133.19,40.5010437]
[1744833270859,234.96648471,133.27,133.19,40.5010437]
[1744833271476,190.33743815,133.27,133.19,30.0]
[1744833271854,18.64964886,133.26,133.19,30.0]
[1744833272160,18.64964886,133.26,133.14,0.4518]
[1744833272161,20.0,133.26,133.14,0.4518]
[1744833272356,7.50243829,133.29,133.2,1.0]
[1744833272576,7.50243829,133.29,133.22,1.0]
[1744833273060,7.50243829,133.29,133.21,1.0]
[1744833273263,7.50243829,133.29,133.22,1.0]
[1744833273580,18.75577683,133.3,133.22,1.0]
[1744833273875,7.50131272,133.31,133.25,1.0]
[1744833274047,7.50131272,133.31,133.22,1.0]
[1744833274253,29.14,133.3,133.2,1.0]
[1744833274453,0.42648471,133.29,133.2,1.0]
[1744833274764,29.14,133.3,133.14,19.10144886]
[1744833274765,19.07613357,133.27,133.14,0.4518]
[1744833275578,19.07613357,133.25,133.14,0.4518]
[1744833276175,19.07613357,133.24,133.14,0.4518]
[1744833276379,0.42648471,133.22,133.14,1.4518]
[1744833276577,253.41613357,133.22,133.14,0.4518]
[1744833276975,253.41613357,133.22,133.14,1e-08]
[1744833277374,19.07613357,133.2,133.14,1e-08]
[1744833278980,26.27430372,133.21,133.15,1.0]
[1744833279281,26.27430372,133.21,133.14,1e-08]
[1744833279673,0.42648471,133.2,133.14,1e-08]
[1744833280359,26.27430372,133.21,133.15,1.0]
[1744833280981,26.24671915,133.35,133.23,1.0]
[1744833281283,83.74203223,133.35,133.22,1.0]
[1744833281463,44.89833641,133.34,133.2,1.0]
[1744833281667,26.24868755,133.34,133.24,1.0]
[1744833281863,26.24868755,133.34,133.22,1.0]
[1744833282076,26.24868755,133.34,133.24,1.0]
[1744833282387,26.24868755,133.34,133.17,18.64964886]
[1744833282388,26.24868755,133.34,133.25,1.0]
[1744833282569,26.0,133.31,133.23,1.0]
[1744833282767,26.24868755,133.34,133.23,1.0]
[1744833282978,26.0,133.31,133.23,1.0]
[1744833283184,0.42648471,133.29,133.22,1.0]
[1744833283688,26.2605042,133.28,133.24,1.0]
[1744833283862,7.5030012,133.28,133.24,1.0]
[1744833285170,7.5030012,133.28,133.25,1.0]
[1744833285375,7.5030012,133.28,133.22,1.0]
[1744833285583,0.14216157,133.27,133.22,1.0]
[1744833285882,0.42648471,133.27,133.18,1.0]
[1744833286084,0.14216157,133.27,133.21,1.0]
[1744833286696,0.42648471,133.27,133.18,1.0]
[1744833286867,0.42648471,133.27,133.2,1.0]
[1744833287582,0.28432314,133.25,133.16,1.0]
[1744833287791,45.07613357,133.25,133.15,1.0]
[1744833287979,45.07613357,133.25,133.17,1.0]
[1744833288180,0.42648471,133.21,133.13,1.063]
[1744833288493,29.24216157,133.21,133.16,1.0]
[1744833289075,29.1,133.21,133.16,1.0]
[1744833289299,29.1,133.21,133.17,1.0]
[1744833289497,26.26444543,133.26,133.2,1.0]
[1744833289882,0.28432314,133.25,133.19,1.0]
[1744833290081,26.0,133.22,133.14,1.0]
[1744833290279,26.26444543,133.26,133.18,1.0]
[1744833290597,26.26444543,133.26,133.2,1.0]
[1744833290976,0.14216157,133.25,133.19,1.0]
[1744833291166,26.42648471,133.25,133.17,1.0]
[1744833291366,26.42648471,133.25,133.13,0.063]
[1744833291367,0.28432314,133.22,133.13,0.063]
[1744833291577,0.28432314,133.22,133.16,1.0]
[1744833291783,7.50638042,133.22,133.16,1.0]
[1744833291995,0.14216157,133.21,133.16,1.0]
[1744833292192,7.50638042,133.22,133.14,1.0]
[1744833292376,7.50469043,133.25,133.19,1.0]
[1744833292697,7.50469043,133.25,133.2,1.0]
[1744833292875,26.26669473,133.25,133.19,1.0]
[1744833293075,26.26669473,133.25,133.2,1.0]
[1744833293703,0.28432314,133.24,133.14,1.0]
[1744833294000,7.505817,133.23,133.19,1.0]
[1744833294192,7.50356419,133.27,133.21,1.0]
[1744833294498,7.50356419,133.27,133.18,1.0]
[1744833294690,0.42648471,133.26,133.2,1.0]
[1744833294997,0.42648471,133.26,133.17,1.0]
[1744833295503,19.07613357,133.26,133.16,1.0]
[1744833295797,0.14216157,133.24,133.18,1.0]
[1744833296004,0.14216157,133.22,133.14,1.0]
[1744833296205,0.14216157,133.22,133.17,1.0]
[1744833297206,26.27035952,133.23,133.17,1.0]
[1744833297207,7.505817,133.23,133.17,1.0]
[1744833297494,7.505817,133.23,133.18,1.0]
[1744833297792,26.27035952,133.23,133.18,1.0]
[1744833297997,18.76454252,133.23,133.15,1.0]
[1744833298192,0.14216157,133.22,133.15,1.0]
[1744833298399,0.42648471,133.22,133.14,1.0]
[1744833298599,0.14216157,133.19,133.13,1.063]
[1744833298771,0.14216157,133.17,133.13,0.063]
[1744833299291,19.07613357,133.17,133.13,0.063]
[1744833299877,26.28416941,133.16,133.13,0.063]
[1744833300075,26.28416941,133.16,133.1,1.0]
[1744833300076,0.14216157,133.13,133.07,0.063]
[1744833300276,51.34711043,133.08,132.99,0.063]
[1744833300618,26.0,132.99,132.82,1.0]
[1744833300903,26.0,132.9,132.8,13.0076378]
[1744833301073,26.0,132.78,132.77,43.43150783]
[1744833301277,37.65284932,132.88,132.78,1.0]
[1744833301502,31.32,132.89,132.77,4.54576836]
[1744833301503,37.92291325,132.82,132.77,4.54576836]
[1744833301706,37.43965093,132.78,132.77,4.54576836]
[1744833301886,0.14216157,132.78,132.77,4.54576836]
[1744833302082,37.52124252,132.91,132.77,4.54576836]
[1744833302278,37.85961254,132.89,132.77,4.54576836]
[1744833302473,37.52124252,132.91,132.77,12.07721358]
[1744833302680,66.96505399,132.84,132.77,7.53144522]
[1744833302912,66.96505399,132.84,132.77,33.53144522]
[1744833303106,66.96505399,132.84,132.77,7.53144522]
[1744833303410,18.85394257,132.84,132.82,1.0]
[1744833303614,35.12450977,132.87,132.81,27.0]
[1744833303825,35.12450977,132.87,132.85,27.0]
[1744833303988,234.9032,133.03,132.89,26.0]
[1744833304192,234.9032,133.03,132.9,18.64964886]
[1744833304193,266.2432,133.03,132.9,18.64964886]
[1744833304509,42.64620068,132.95,132.86,7.52671985]
[1744833304806,73.98620068,132.95,132.84,18.64964886]
[1744833305008,73.98620068,132.95,132.83,27.34941093]
[1744833305009,35.12450978,132.95,132.83,27.34941093]
[1744833305215,31.36,132.99,132.85,18.64964886]
[1744833305515,7.51766651,133.02,132.91,18.64964886]
[1744833305725,0.4832,133.03,132.95,18.64964886]
[1744833305910,38.87298564,133.11,133.02,26.0]
[1744833306079,7.51317158,133.1,133.02,33.51737426]
[1744833306282,31.36,133.11,133.0,7.51879699]
[1744833306479,30.28895909,133.07,132.93,7.52275633]
[1744833306694,7.51493169,133.07,132.97,18.64964886]
[1744833306983,26.14216157,133.03,132.88,18.64964886]
[1744833307197,26.14216157,133.03,132.87,7.52615338]
[1744833307198,31.36,133.02,132.87,26.34153683]
[1744833307405,31.36,133.02,132.9,26.0]
[1744833307585,0.14216157,133.01,132.87,7.52615338]
[1744833307786,0.42648471,133.01,132.87,7.52615338]
[1744833307982,7.51879699,133.0,132.88,18.64964886]
[1744833308338,31.36,133.02,132.92,18.64964886]
[1744833308619,57.64125579,132.99,132.94,57.64125579]
[1744833308786,57.64125579,133.01,132.96,57.64125579]
[1744833308980,31.36,133.02,132.96,57.64125579]
[1744833309212,57.64125579,133.0,132.95,57.64125579]
[1744833309378,38.87790697,133.02,132.93,57.64125579]
[1744833309777,57.64125579,132.97,132.92,57.64125579]
[1744833310085,38.87790697,133.02,132.91,26.0]
[1744833310280,57.64125579,132.98,132.93,57.64125579]
[1744833310884,57.64125579,133.0,132.95,57.64125579]
[1744833311200,57.64125579,133.0,132.92,18.933972]
[1744833311407,38.87790697,133.02,132.94,57.64125579]
[1744833311592,57.64125579,132.99,132.94,57.64125579]
[1744833311789,57.64125579,132.99,132.92,0.28432314]
[1744833311790,57.64125579,132.99,132.91,18.79181043]
[1744833311993,57.64125579,132.98,132.91,18.64964886]
[1744833312490,57.64125579,132.98,132.93,57.64125579]
[1744833312884,57.64125579,133.01,132.96,18.64964886]
[1744833313085,57.64125579,132.99,132.94,57.64125579]
[1744833313313,57.64125579,132.98,132.93,102.29090465]
[1744833313704,57.64125579,132.94,132.88,57.64125579]
[1744833314003,57.64125579,132.92,132.87,89.00125579]
[1744833314322,7.52169555,132.95,132.8,4.74135514]
[1744833314323,57.64125579,132.91,132.86,57.64125579]
[1744833314501,57.64125579,132.92,132.87,76.29090465]
[1744833314807,7.52169555,132.95,132.9,57.64125579]
[1744833314808,57.64125579,132.95,132.9,57.64125579]
[1744833315007,7.5199278,132.98,132.9,57.64125579]
[1744833315209,6.2291,132.99,132.93,57.64125579]
[1744833315516,26.17216157,133.04,132.93,57.64125579]
[1744833315517,57.64125579,133.01,132.96,57.64125579]
[1744833315695,57.64125579,132.98,132.92,102.29090465]
[1744833315895,57.64125579,132.98,132.92,83.64125579]
[1744833316090,57.64125579,132.99,132.94,57.64125579]
[1744833316411,57.64125579,133.01,132.96,57.64125579]
[1744833316612,57.64125579,133.02,132.97,57.64125579]
[1744833316818,7.51719937,133.03,132.96,57.64125579]
[1744833316992,0.03,133.04,133.02,57.64125579]
[1744833317192,0.03,133.04,133.03,57.64125579]
[1744833317712,0.03,133.04,133.02,26.0]
[1744833317900,0.03,133.04,133.03,76.29090465]
[1744833318297,26.27430372,133.21,133.08,18.64964886]
[1744833318519,57.64125579,133.19,133.14,57.64125579]
[1744833318700,7.50694392,133.21,133.13,57.64125579]
[1744833318701,57.64125579,133.18,133.13,57.64125579]
[1744833319429,57.64125579,133.17,133.12,18.64964886]
[1744833319800,57.64125579,133.17,133.12,76.29090465]
[1744833320119,57.64125579,133.18,133.13,57.64125579]
[1744833320300,57.64125579,133.14,133.05,234.56]
[1744833320491,57.64125579,133.11,133.06,76.29090465]
[1744833320694,57.64125579,133.12,133.07,57.64125579]
[1744833320901,57.64125579,133.11,133.05,234.56]
[1744833321089,57.64125579,133.08,133.0,57.64125579]
[1744833321295,57.64125579,133.08,133.03,57.64125579]
[1744833321516,57.64125579,133.09,133.04,57.64125579]
[1744833321718,57.64125579,133.07,133.02,57.64125579]
[1744833321938,57.64125579,133.04,132.99,31.36]
[1744833322125,7.51270976,133.11,133.03,57.64125579]
[1744833322419,57.64125579,133.08,133.01,18.64964886]
[1744833322616,13.75975938,133.12,133.06,57.64125579]
[1744833322917,63.88885579,133.12,133.07,57.64125579]
[1744833323501,63.88885579,133.12,133.03,0.42648471]
[1744833323711,57.64125579,133.1,133.05,57.64125579]
[1744833325842,57.64125579,133.11,133.06,57.64125579]
[1744833326138,57.64125579,133.1,133.05,57.64125579]
[1744833326630,1.6244,133.13,133.09,57.64125579]
[1744833326942,37.0967,133.19,133.12,57.64125579]
[1744833326943,44.60492957,133.19,133.12,57.64125579]
[1744833327137,6.2567,133.19,133.15,57.64125579]
[1744833327722,56.1058752,133.24,133.18,57.64125579]
[1744833327723,6.4088,133.24,133.18,57.64125579]
[1744833327922,64.05005579,133.24,133.18,57.64125579]
[1744833328119,57.64125579,133.23,133.18,57.64125579]
[1744833328321,6.4088,133.24,133.14,102.29090465]
[1744833328322,57.64125579,133.21,133.15,18.64964886]
[1744833328530,57.64125579,133.22,133.15,18.64964886]
[1744833328741,57.64125579,133.22,133.17,57.64125579]
[1744833329035,108.89704017,133.24,133.19,57.64125579]
[1744833329831,43.7504071,133.24,133.2,57.64125579]
[1744833330444,57.64125579,133.26,133.18,18.64964886]
[1744833330622,94.81357613,133.26,133.2,57.64125579]
[1744833331027,94.81357613,133.26,133.21,57.64125579]
[1744833331441,37.17232034,133.26,133.21,57.64125579]
[1744833331622,102.31803566,133.26,133.21,57.64125579]
[1744833331823,57.64125579,133.22,133.13,26.0]
[1744833332138,57.64125579,133.22,133.17,57.64125579]
[1744833332313,63.43709804,133.26,133.17,57.64125579]
[1744833332730,57.64125579,133.22,133.17,57.64125579]
[1744833333239,57.64125579,133.21,133.16,57.64125579]
[1744833333451,57.64125579,133.22,133.17,57.64125579]
[1744833333952,1.5257,133.27,133.21,76.29090465]
[1744833334120,63.69335579,133.3,133.21,76.29090465]
[1744833334320,57.64125579,133.27,133.22,57.64125579]
[1744833334638,57.64125579,133.23,133.18,30.82]
[1744833334824,57.64125579,133.23,133.18,88.46125579]
[1744833335029,57.64125579,133.22,133.18,30.82]
[1744833339042,57.64125579,133.29,133.24,57.64125579]
[1744833339224,6.0521,133.3,133.27,57.64125579]
[1744833339616,6.0521,133.3,133.26,57.64125579]
[1744833339820,6.0521,133.3,133.28,57.64125579]
[1744833340020,6.0521,133.3,133.27,57.64125579]
[1744833340228,6.0521,133.3,133.23,26.0]
[1744833340450,6.0521,133.3,133.26,57.64125579]
[1744833340750,59.21645579,133.34,133.29,57.64125579]
[1744833341464,66.71616045,133.34,133.29,57.64125579]
[1744833341756,66.71616045,133.34,133.26,18.64964886]
[1744833342054,1.5752,133.34,133.31,57.64125579]
[1744833342359,0.03,133.35,133.33,57.64125579]
[1744833342558,0.03,133.35,133.34,57.64125579]
[1744833343138,0.03,133.35,133.33,57.64125579]
[1744833343858,0.03,133.35,133.31,26.0]
[1744833343859,0.03,133.35,133.34,57.64125579]
[1744833344538,0.03,133.35,133.34,76.29090465]
[1744833344739,0.03,133.35,133.34,57.64125579]
[1744833345851,0.03,133.35,133.34,76.29090465]
[1744833346158,0.03,133.35,133.34,102.29090465]
[1744833347336,0.03,133.36,133.34,57.64125579]
[1744833347536,0.03,133.36,133.35,57.64125579]
[1744833347739,0.03,133.36,133.35,76.29090465]
[1744833347945,0.03,133.38,133.37,0.42648471]
[1744833348141,0.03,133.38,133.37,102.71738936]
[1744833349558,2.543623,133.44,133.42,18.64964886]
[1744833349954,2.543623,133.44,133.43,57.64125579]
[1744833350263,2.543623,133.44,133.43,76.29090465]
[1744833350443,2.543623,133.44,133.43,57.64125579]
[1744833351858,2.543623,133.44,133.43,76.29090465]
[1744833352033,2.543623,133.44,133.43,102.57522779]
[1744833352238,57.64125579,133.46,133.4,0.28432314]
[1744833352441,57.64125579,133.45,133.38,29.06]
[1744833352674,57.64125579,133.44,133.38,29.06]
[1744833352961,57.64125579,133.42,133.38,29.06]
[1744833353147,57.64125579,133.41,133.38,29.06]
[1744833353348,57.64125579,133.4,133.28,81.23125579]
[1744833353557,57.64125579,133.37,133.32,57.64125579]
[1744833353939,57.64125579,133.36,133.31,57.64125579]
[1744833354760,57.64125579,133.35,133.3,57.64125579]
[1744833355264,57.64125579,133.34,133.29,57.64125579]
[1744833355561,57.64125579,133.35,133.3,57.64125579]
[1744833355742,57.64125579,133.32,133.22,0.063]
[1744833355950,59.23945579,133.35,133.26,57.64125579]
[1744833355951,57.64125579,133.31,133.26,57.64125579]
[1744833356257,57.64125579,133.32,133.27,57.64125579]
[1744833356649,57.64125579,133.3,133.26,18.64964886]
[1744833357256,7.49962501,133.34,133.24,57.64125579]
[1744833357257,57.64125579,133.29,133.24,57.64125579]